[Event "*** Titled Tuesday Blitz"]
[Site "Chess.com"]
[Date "2021.03.30"]
[Round "3"]
[White "Myshakov_Fedor"]
[Black "Artem_Sadovsky"]
[Result "1-0"]
[WhiteElo "2363"]
[BlackElo "2637"]
[TimeControl "180+1"]
[EndTime "10:29:33 PDT"]
[Termination "Myshakov_Fedor won by resignation"]

1. c4 {[%clk 0:02:58]} 1... b6 {[%clk 0:02:56.3]} 2. Nc3 {[%clk 0:02:58.3]} 2...
Bb7 {[%clk 0:02:53.5]} 3. d4 {[%clk 0:02:58.9]} 3... f5 {[%clk 0:02:50.4]} 4. d5
{[%clk 0:02:58.2]} 4... Nf6 {[%clk 0:02:48.6]} 5. g3 {[%clk 0:02:58.1]} 5... e5
{[%clk 0:02:43.9]} 6. Bg2 {[%clk 0:02:54.2]} 6... Bc5 {[%clk 0:02:40.1]} 7. Nf3
{[%clk 0:02:50.6]} 7... Qe7 {[%clk 0:02:07.6]} 8. Nh4 {[%clk 0:02:39.6]} 8... g6
{[%clk 0:01:41.4]} 9. d6 {[%clk 0:02:28.7]} 9... Bxg2 {[%clk 0:01:27.2]} 10.
dxe7 {[%clk 0:02:28.2]} 10... Bxh1 {[%clk 0:01:28.1]} 11. f3 {[%clk 0:02:17.1]}
11... Nc6 {[%clk 0:01:21.1]} 12. Bg5 {[%clk 0:02:00.1]} 12... Bxe7 {[%clk
0:01:12.2]} 13. Bxf6 {[%clk 0:01:54.8]} 13... Bxf6 {[%clk 0:01:12.3]} 14. Kf2
{[%clk 0:01:50.8]} 14... Na5 {[%clk 0:00:47]} 15. Nd5 {[%clk 0:01:33.1]} 15...
Bd8 {[%clk 0:00:39.5]} 16. Rc1 {[%clk 0:01:26.4]} 16... c6 {[%clk 0:00:35]} 17.
Nb4 {[%clk 0:01:18.7]} 17... Be7 {[%clk 0:00:31.3]} 18. a3 {[%clk 0:01:05.7]}
18... Bc5+ {[%clk 0:00:26.3]} 19. e3 {[%clk 0:01:05.4]} 19... f4 {[%clk
0:00:26.3]} 20. gxf4 {[%clk 0:00:53.5]} 20... exf4 {[%clk 0:00:27.2]} 21. Nc2
{[%clk 0:00:46.6]} 21... Nxc4 {[%clk 0:00:23.6]} 22. Qxh1 {[%clk 0:00:39.6]}
22... Nxe3 {[%clk 0:00:23.7]} 23. Ke2 {[%clk 0:00:34.5]} 23... Nxc2 {[%clk
0:00:19.9]} 24. Rxc2 {[%clk 0:00:34.4]} 24... O-O-O {[%clk 0:00:18.6]} 25. Kd3
{[%clk 0:00:33.7]} 25... Rhe8 {[%clk 0:00:17.2]} 26. Ng2 {[%clk 0:00:32.3]}
26... g5 {[%clk 0:00:13.9]} 27. b4 {[%clk 0:00:29.8]} 27... Be3 {[%clk
0:00:11.2]} 28. b5 {[%clk 0:00:29]} 28... c5 {[%clk 0:00:08.5]} 29. h4 {[%clk
0:00:29]} 29... g4 {[%clk 0:00:05]} 30. fxg4 {[%clk 0:00:26.4]} 30... d5 {[%clk
0:00:05.5]} 31. g5 {[%clk 0:00:24.1]} 31... c4+ {[%clk 0:00:04.8]} 32. Ke2
{[%clk 0:00:20.9]} 32... Bc5+ {[%clk 0:00:03]} 33. Kf3 {[%clk 0:00:20.5]} 33...
d4 {[%clk 0:00:03.4]} 34. Qh3+ {[%clk 0:00:19.9]} 34... Kb7 {[%clk 0:00:03.2]}
35. Qf5 {[%clk 0:00:19.5]} 35... Re7 {[%clk 0:00:02.7]} 36. Nxf4 {[%clk
0:00:18.9]} 36... d3 {[%clk 0:00:03.1]} 37. Rd2 {[%clk 0:00:16.6]} 37... Re3+
{[%clk 0:00:01.8]} 38. Kg4 {[%clk 0:00:16.6]} 38... c3 {[%clk 0:00:01.2]} 39.
Rxd3 {[%clk 0:00:15.4]} 39... Rexd3 {[%clk 0:00:01.5]} 40. Nxd3 {[%clk
0:00:15.8]} 40... Bd6 {[%clk 0:00:01.1]} 41. Qe4+ {[%clk 0:00:15.8]} 41... Kb8
{[%clk 0:00:01.6]} 42. Qxh7 {[%clk 0:00:13.9]} 42... Rc8 {[%clk 0:00:01.9]} 43.
Qg6 {[%clk 0:00:12.5]} 43... Bxa3 {[%clk 0:00:02.8]} 44. h5 {[%clk 0:00:12.6]}
44... c2 {[%clk 0:00:03.3]} 45. Qf5 {[%clk 0:00:12.5]} 45... Rc4+ {[%clk
0:00:03.6]} 46. Kf3 {[%clk 0:00:12.7]} 46... Rc3 {[%clk 0:00:04.1]} 47. Qe5+
{[%clk 0:00:08.1]} 47... Rc7 {[%clk 0:00:04.7]} 48. h6 {[%clk 0:00:07.3]} 48...
Kb7 {[%clk 0:00:04.8]} 49. h7 {[%clk 0:00:07.5]} 49... Rd7 {[%clk 0:00:03.3]}
50. h8=Q {[%clk 0:00:07.1]} 50... Rxd3+ {[%clk 0:00:03.2]} 51. Ke4 {[%clk
0:00:07.7]} 51... Re3+ {[%clk 0:00:02.5]} 52. Kxe3 {[%clk 0:00:07.9]} 52...
c1=Q+ {[%clk 0:00:03.1]} 53. Kf3 {[%clk 0:00:08.3]} 53... Qf1+ {[%clk
0:00:02.2]} 54. Kg4 {[%clk 0:00:08.4]} 54... Qg2+ {[%clk 0:00:02.2]} 55. Kf5
{[%clk 0:00:08.8]} 55... Qc2+ {[%clk 0:00:02]} 56. Qe4+ {[%clk 0:00:09.1]} 56...
Qxe4+ {[%clk 0:00:02.9]} 57. Kxe4 {[%clk 0:00:09.6]} 1-0

[Event "*** Titled Tuesday Blitz"]
[Site "Chess.com"]
[Date "2021.03.30"]
[Round "3"]
[White "prachiti01"]
[Black "hleol"]
[Result "0-1"]
[WhiteElo "1927"]
[BlackElo "2363"]
[TimeControl "180+1"]
[EndTime "10:29:34 PDT"]
[Termination "hleol won by checkmate"]

1. e4 {[%clk 0:03:00.9]} 1... e5 {[%clk 0:02:58.8]} 2. Nf3 {[%clk 0:02:59.7]}
2... Nc6 {[%clk 0:02:59.4]} 3. Bb5 {[%clk 0:02:59.1]} 3... a6 {[%clk 0:02:59.6]}
4. Ba4 {[%clk 0:02:59.1]} 4... Nf6 {[%clk 0:02:59.9]} 5. d3 {[%clk 0:02:59.1]}
5... b5 {[%clk 0:02:58.8]} 6. Bb3 {[%clk 0:02:58.7]} 6... Bc5 {[%clk 0:02:59.5]}
7. O-O {[%clk 0:02:57.8]} 7... O-O {[%clk 0:02:57.6]} 8. Nc3 {[%clk 0:02:56.4]}
8... h6 {[%clk 0:02:56]} 9. Nd5 {[%clk 0:02:55.3]} 9... d6 {[%clk 0:02:52.1]}
10. c3 {[%clk 0:02:53.4]} 10... Rb8 {[%clk 0:02:51.4]} 11. d4 {[%clk 0:02:50.8]}
11... Ba7 {[%clk 0:02:49.4]} 12. Re1 {[%clk 0:02:44.7]} 12... exd4 {[%clk
0:02:49.4]} 13. cxd4 {[%clk 0:02:43.7]} 13... Bg4 {[%clk 0:02:49]} 14. Nxf6+
{[%clk 0:02:37.3]} 14... Qxf6 {[%clk 0:02:47.1]} 15. e5 {[%clk 0:02:05.7]} 15...
dxe5 {[%clk 0:02:44.1]} 16. dxe5 {[%clk 0:02:05.4]} 16... Nxe5 {[%clk
0:02:37.2]} 17. Rxe5 {[%clk 0:02:04.7]} 17... Bxf3 {[%clk 0:02:30.9]} 18. Qe1
{[%clk 0:02:02.3]} 18... Qg6 {[%clk 0:01:48]} 19. Bg5 {[%clk 0:01:47.3]} 19...
Bb7 {[%clk 0:01:36.9]} 20. Qd2 {[%clk 0:01:30.5]} 20... hxg5 {[%clk 0:01:33.7]}
21. Rxg5 {[%clk 0:01:30]} 21... Qf6 {[%clk 0:01:23.5]} 22. Rg3 {[%clk
0:01:27.8]} 22... Rbd8 {[%clk 0:01:22.3]} 23. Qc2 {[%clk 0:01:26.8]} 23... Rfe8
{[%clk 0:01:10.8]} 24. Rf1 {[%clk 0:01:22.8]} 24... c5 {[%clk 0:00:47.3]} 25. a3
{[%clk 0:01:17.5]} 25... c4 {[%clk 0:00:47]} 26. Ba2 {[%clk 0:01:17.5]} 26...
Be4 {[%clk 0:00:46]} 27. Qc1 {[%clk 0:01:14.2]} 27... Bd3 {[%clk 0:00:44.1]} 28.
Rf3 {[%clk 0:01:02.3]} 28... Qg6 {[%clk 0:00:31.3]} 29. Re1 {[%clk 0:00:58.8]}
29... Be4 {[%clk 0:00:26.8]} 30. Rg3 {[%clk 0:00:55.7]} 30... Qf5 {[%clk
0:00:27]} 31. Rf1 {[%clk 0:00:52.5]} 31... Bc2 {[%clk 0:00:25.5]} 32. h4 {[%clk
0:00:47.5]} 32... Rd1 {[%clk 0:00:20.3]} 33. Rxd1 {[%clk 0:00:46]} 33... Qxf2+
{[%clk 0:00:20.1]} 34. Kh2 {[%clk 0:00:45.8]} 34... Bxd1 {[%clk 0:00:20.2]} 35.
Qxd1 {[%clk 0:00:45.5]} 35... Bb8 {[%clk 0:00:20.7]} 36. Qf3 {[%clk 0:00:44.1]}
36... Bxg3+ {[%clk 0:00:20.4]} 37. Qxg3 {[%clk 0:00:43.8]} 37... Qxg3+ {[%clk
0:00:20.4]} 38. Kxg3 {[%clk 0:00:43.5]} 38... Re2 {[%clk 0:00:21.3]} 39. Bb1
{[%clk 0:00:42.5]} 39... Rxb2 {[%clk 0:00:21.5]} 40. Be4 {[%clk 0:00:40.9]}
40... Rb3+ {[%clk 0:00:21.5]} 41. Kf4 {[%clk 0:00:38.9]} 41... Rxa3 {[%clk
0:00:22.4]} 42. g4 {[%clk 0:00:38.4]} 42... b4 {[%clk 0:00:22.8]} 43. h5 {[%clk
0:00:33.8]} 43... b3 {[%clk 0:00:23.4]} 44. g5 {[%clk 0:00:33.2]} 44... b2
{[%clk 0:00:24]} 45. h6 {[%clk 0:00:32.2]} 45... gxh6 {[%clk 0:00:24.9]} 46.
gxh6 {[%clk 0:00:31.3]} 46... c3 {[%clk 0:00:25.5]} 47. h7+ {[%clk 0:00:30.2]}
47... Kh8 {[%clk 0:00:25.3]} 48. Kg5 {[%clk 0:00:29.9]} 48... Ra4 {[%clk
0:00:25.2]} 49. Bc2 {[%clk 0:00:28.4]} 49... Rd4 {[%clk 0:00:25.2]} 50. Kf6
{[%clk 0:00:27.9]} 50... Rd2 {[%clk 0:00:25.2]} 51. Be4 {[%clk 0:00:26.4]} 51...
c2 {[%clk 0:00:25.5]} 52. Kxf7 {[%clk 0:00:24.7]} 52... c1=Q {[%clk 0:00:24.8]}
53. Bf5 {[%clk 0:00:23.9]} 53... Qc7+ {[%clk 0:00:24.7]} 54. Kf6 {[%clk
0:00:21.3]} 54... Rd6+ {[%clk 0:00:23.9]} 55. Kg5 {[%clk 0:00:20.4]} 55... Qg7+
{[%clk 0:00:23.8]} 56. Kf4 {[%clk 0:00:19.9]} 56... Rd4+ {[%clk 0:00:24.3]} 57.
Ke3 {[%clk 0:00:19.4]} 57... Qe5+ {[%clk 0:00:24]} 58. Kf3 {[%clk 0:00:17.1]}
58... Qxf5+ {[%clk 0:00:24.2]} 59. Ke2 {[%clk 0:00:16.1]} 59... Qe4+ {[%clk
0:00:21.1]} 60. Kf2 {[%clk 0:00:14.9]} 60... Rd2+ {[%clk 0:00:21.5]} 61. Kg3
{[%clk 0:00:14.1]} 61... Rg2+ {[%clk 0:00:21.7]} 62. Kh3 {[%clk 0:00:13.4]}
62... Qg4# {[%clk 0:00:22.6]} 0-1

[Event "*** Titled Tuesday Blitz"]
[Site "Chess.com"]
[Date "2021.03.30"]
[Round "3"]
[White "Sweafty"]
[Black "VladDobrov"]
[Result "1-0"]
[WhiteElo "2547"]
[BlackElo "2762"]
[TimeControl "180+1"]
[EndTime "10:29:35 PDT"]
[Termination "Sweafty won by resignation"]

1. Nf3 {[%clk 0:02:58.7]} 1... d5 {[%clk 0:02:59.5]} 2. c4 {[%clk 0:02:59]} 2...
d4 {[%clk 0:02:59.4]} 3. b4 {[%clk 0:02:59.3]} 3... f6 {[%clk 0:02:51.6]} 4. e3
{[%clk 0:02:58.5]} 4... c5 {[%clk 0:02:50.1]} 5. exd4 {[%clk 0:02:17.1]} 5...
cxd4 {[%clk 0:02:49.5]} 6. c5 {[%clk 0:02:10.9]} 6... a5 {[%clk 0:02:40.3]} 7.
Qa4+ {[%clk 0:02:00.7]} 7... Bd7 {[%clk 0:02:35.5]} 8. b5 {[%clk 0:02:00.9]}
8... e5 {[%clk 0:02:35.7]} 9. Bc4 {[%clk 0:01:54.7]} 9... Nh6 {[%clk 0:02:15.6]}
10. d3 {[%clk 0:01:47.4]} 10... Bxc5 {[%clk 0:02:11.6]} 11. Bxh6 {[%clk
0:01:46.6]} 11... gxh6 {[%clk 0:02:12.5]} 12. O-O {[%clk 0:01:44.1]} 12... Na6
{[%clk 0:01:34.4]} 13. Qd1 {[%clk 0:01:21.3]} 13... Qc7 {[%clk 0:00:38.6]} 14.
bxa6 {[%clk 0:01:19]} 14... b5 {[%clk 0:00:39.1]} 15. Bd5 {[%clk 0:01:18.7]}
15... Rxa6 {[%clk 0:00:39.3]} 16. Nbd2 {[%clk 0:01:18.7]} 16... Be7 {[%clk
0:00:31.6]} 17. a4 {[%clk 0:01:15.6]} 17... bxa4 {[%clk 0:00:31.1]} 18. Qe2
{[%clk 0:00:56.9]} 18... Qd6 {[%clk 0:00:14.2]} 19. Bc4 {[%clk 0:00:55.9]} 19...
Ra7 {[%clk 0:00:14.2]} 20. Rfb1 {[%clk 0:00:54.3]} 20... a3 {[%clk 0:00:08.1]}
21. Ne4 {[%clk 0:00:30.9]} 21... Qc7 {[%clk 0:00:07.7]} 22. Rc1 {[%clk
0:00:29.8]} 22... Qb6 {[%clk 0:00:06.3]} 23. Ng3 {[%clk 0:00:30.2]} 23... Rf8
{[%clk 0:00:05.5]} 24. Qe4 {[%clk 0:00:29.1]} 24... Kd8 {[%clk 0:00:05.4]} 25.
Nf5 {[%clk 0:00:28.9]} 25... Bb4 {[%clk 0:00:05.3]} 26. Nxh6 {[%clk 0:00:26.8]}
26... Bc6 {[%clk 0:00:05.7]} 27. Qh4 {[%clk 0:00:26.1]} 27... Rg7 {[%clk
0:00:05.2]} 28. Kh1 {[%clk 0:00:25.3]} 28... Bxf3 {[%clk 0:00:04.8]} 29. gxf3
{[%clk 0:00:26.2]} 29... Qb7 {[%clk 0:00:05.3]} 30. Qh3 {[%clk 0:00:25.6]} 30...
f5 {[%clk 0:00:04.9]} 31. Rg1 {[%clk 0:00:23.5]} 31... Rg6 {[%clk 0:00:04.9]}
32. Nxf5 {[%clk 0:00:18.2]} 32... Rgf6 {[%clk 0:00:05.1]} 33. Nh4 {[%clk
0:00:18.1]} 33... Rxf3 {[%clk 0:00:05.2]} 34. Nxf3 {[%clk 0:00:18.1]} 34... Rxf3
{[%clk 0:00:06.1]} 35. Qg2 {[%clk 0:00:18.6]} 35... e4 {[%clk 0:00:05.6]} 36.
dxe4 {[%clk 0:00:18.3]} 36... Qxe4 {[%clk 0:00:06.5]} 37. Qg8+ {[%clk
0:00:16.4]} 37... Rf8+ {[%clk 0:00:05.6]} 38. Qg2 {[%clk 0:00:15.9]} 38... Qxg2+
{[%clk 0:00:06.2]} 39. Rxg2 {[%clk 0:00:16.6]} 39... Ke7 {[%clk 0:00:07]} 40.
Rg4 {[%clk 0:00:14.1]} 40... Bc5 {[%clk 0:00:06.4]} 41. Re4+ {[%clk 0:00:13.5]}
41... Kd6 {[%clk 0:00:06.4]} 42. Kg2 {[%clk 0:00:14.4]} 42... Rg8+ {[%clk
0:00:06.7]} 43. Kf1 {[%clk 0:00:14.2]} 43... Rb8 {[%clk 0:00:07.6]} 44. Re6+
{[%clk 0:00:14.6]} 44... Kd7 {[%clk 0:00:07.1]} 45. Ra6 {[%clk 0:00:14.3]} 45...
Bb4 {[%clk 0:00:07.4]} 46. Ra7+ {[%clk 0:00:13.7]} 46... Kd6 {[%clk 0:00:07.7]}
47. Ke2 {[%clk 0:00:12.2]} 47... Rf8 {[%clk 0:00:07.8]} 48. f3 {[%clk
0:00:12.2]} 48... Re8+ {[%clk 0:00:08]} 49. Kf2 {[%clk 0:00:12.8]} 49... Re3
{[%clk 0:00:08.4]} 50. Rd1 {[%clk 0:00:12.6]} 50... Rc3 {[%clk 0:00:08.8]} 51.
Rxd4+ {[%clk 0:00:11.1]} 51... Kc5 {[%clk 0:00:08.9]} 52. Rh4 {[%clk 0:00:11.5]}
52... a2 {[%clk 0:00:07.4]} 53. Bxa2 {[%clk 0:00:11.6]} 53... Rc2+ {[%clk
0:00:07.5]} 54. Kg3 {[%clk 0:00:12.1]} 54... Rxa2 {[%clk 0:00:08.4]} 55. Rhxh7
{[%clk 0:00:12.6]} 55... Be1+ {[%clk 0:00:08.1]} 56. Kf4 {[%clk 0:00:12.4]}
56... Bb4 {[%clk 0:00:09]} 57. Rh5+ {[%clk 0:00:12.1]} 57... Kd4 {[%clk
0:00:09.3]} 58. Rd7+ {[%clk 0:00:12.3]} 58... Kc4 {[%clk 0:00:09.8]} 59. h4
{[%clk 0:00:12.1]} 59... Kb3 {[%clk 0:00:09.7]} 60. Rb7 {[%clk 0:00:12.2]} 60...
Rh2 {[%clk 0:00:09]} 61. Kg3 {[%clk 0:00:12.2]} 61... Ra2 {[%clk 0:00:08.2]} 62.
Rh8 {[%clk 0:00:12.7]} 62... Kc3 {[%clk 0:00:07.5]} 63. Rc8+ {[%clk 0:00:12.4]}
63... Kd3 {[%clk 0:00:07.9]} 64. Rd7+ {[%clk 0:00:12.8]} 64... Ke2 {[%clk
0:00:08.3]} 65. Re8+ {[%clk 0:00:12.9]} 65... Kf1 {[%clk 0:00:06.6]} 66. Rd1+
{[%clk 0:00:12.7]} 1-0

[Event "*** Titled Tuesday Blitz"]
[Site "Chess.com"]
[Date "2021.03.30"]
[Round "3"]
[White "Sam_ChessMood"]
[Black "Kislov_Oleg"]
[Result "1-0"]
[WhiteElo "2861"]
[BlackElo "2475"]
[TimeControl "180+1"]
[EndTime "10:29:37 PDT"]
[Termination "Sam_ChessMood won by resignation"]

1. Nf3 {[%clk 0:03:00.9]} 1... d5 {[%clk 0:02:59.8]} 2. d4 {[%clk 0:03:00.4]}
2... Nf6 {[%clk 0:03:00.3]} 3. c4 {[%clk 0:03:00.5]} 3... e6 {[%clk 0:03:00.8]}
4. Nc3 {[%clk 0:03:00.1]} 4... Bb4 {[%clk 0:03:01]} 5. Bg5 {[%clk 0:02:57]} 5...
h6 {[%clk 0:03:01.3]} 6. Bxf6 {[%clk 0:02:57.3]} 6... Qxf6 {[%clk 0:03:02.2]} 7.
e3 {[%clk 0:02:57.8]} 7... O-O {[%clk 0:03:01.9]} 8. Rc1 {[%clk 0:02:57.2]} 8...
dxc4 {[%clk 0:02:53.3]} 9. Bxc4 {[%clk 0:02:58.1]} 9... c5 {[%clk 0:02:53.7]}
10. O-O {[%clk 0:02:57.8]} 10... cxd4 {[%clk 0:02:47.8]} 11. Ne4 {[%clk
0:02:57.9]} 11... Qe7 {[%clk 0:02:38.4]} 12. a3 {[%clk 0:02:57.8]} 12... Bd6
{[%clk 0:02:31.2]} 13. Qxd4 {[%clk 0:02:55.7]} 13... Rd8 {[%clk 0:02:26.3]} 14.
Nxd6 {[%clk 0:02:53.2]} 14... Qxd6 {[%clk 0:02:19.8]} 15. Rfd1 {[%clk
0:02:39.1]} 15... Qxd4 {[%clk 0:02:16.5]} 16. Nxd4 {[%clk 0:02:40]} 16... a6
{[%clk 0:01:47.7]} 17. Nf5 {[%clk 0:02:38.7]} 17... Rxd1+ {[%clk 0:01:42.9]} 18.
Rxd1 {[%clk 0:02:38.5]} 18... Nc6 {[%clk 0:01:40.8]} 19. Nd6 {[%clk 0:02:38.6]}
19... Kf8 {[%clk 0:01:21.8]} 20. Be2 {[%clk 0:02:35]} 20... Ke7 {[%clk
0:01:20.2]} 21. b4 {[%clk 0:02:30.8]} 21... Ne5 {[%clk 0:00:35.4]} 22. f4 {[%clk
0:02:27.9]} 22... Nd7 {[%clk 0:00:35.5]} 23. Bf3 {[%clk 0:02:20.8]} 23... Rb8
{[%clk 0:00:29.7]} 24. h4 {[%clk 0:02:04.7]} 24... Nb6 {[%clk 0:00:29.1]} 25. e4
{[%clk 0:01:56.8]} 25... e5 {[%clk 0:00:27.3]} 26. fxe5 {[%clk 0:01:55]} 26...
Be6 {[%clk 0:00:27.5]} 27. Be2 {[%clk 0:01:45.2]} 27... Nd7 {[%clk 0:00:27.7]}
28. Nc4 {[%clk 0:01:25.3]} 28... Bxc4 {[%clk 0:00:25.4]} 29. Bxc4 {[%clk
0:01:25.5]} 29... Nxe5 {[%clk 0:00:26.1]} 30. Bd5 {[%clk 0:01:25.8]} 30... b6
{[%clk 0:00:24.9]} 31. Rc1 {[%clk 0:01:23.2]} 31... a5 {[%clk 0:00:22.8]} 32.
Rc7+ {[%clk 0:01:14.6]} 32... Kd6 {[%clk 0:00:23.2]} 33. Ra7 {[%clk 0:01:14.8]}
33... axb4 {[%clk 0:00:23.6]} 34. axb4 {[%clk 0:01:14.6]} 34... g5 {[%clk
0:00:22.3]} 35. h5 {[%clk 0:01:11.4]} 35... f5 {[%clk 0:00:20.3]} 36. Kf1 {[%clk
0:00:34.3]} 36... f4 {[%clk 0:00:20.5]} 37. Ke2 {[%clk 0:00:30.4]} 37... Rc8
{[%clk 0:00:20.5]} 38. Kd2 {[%clk 0:00:28.7]} 38... Ng4 {[%clk 0:00:19.9]} 39.
Rb7 {[%clk 0:00:27.6]} 39... Ne3 {[%clk 0:00:19.3]} 40. Rxb6+ {[%clk 0:00:27.7]}
40... Ke5 {[%clk 0:00:19.7]} 41. Kd3 {[%clk 0:00:27.3]} 41... Re8 {[%clk
0:00:17.9]} 42. Rxh6 {[%clk 0:00:24.7]} 42... Nxg2 {[%clk 0:00:17.8]} 43. Rg6
{[%clk 0:00:23.1]} 43... f3 {[%clk 0:00:18.3]} 44. Rxg5+ {[%clk 0:00:22.4]}
44... Kf4 {[%clk 0:00:18.9]} 45. Rf5+ {[%clk 0:00:22.6]} 45... Kg3 {[%clk
0:00:19.4]} 46. e5 {[%clk 0:00:10.8]} 46... Nf4+ {[%clk 0:00:19.5]} 47. Ke4
{[%clk 0:00:11.3]} 47... Nxd5 {[%clk 0:00:06.7]} 48. Kxd5 {[%clk 0:00:12.2]}
48... f2 {[%clk 0:00:06.3]} 49. e6 {[%clk 0:00:12.7]} 49... Rd8+ {[%clk
0:00:05.2]} 50. Kc6 {[%clk 0:00:12.6]} 50... Rd4 {[%clk 0:00:05]} 51. e7 {[%clk
0:00:10.8]} 51... Re4 {[%clk 0:00:04.9]} 52. Kd7 {[%clk 0:00:10.5]} 52... Rd4+
{[%clk 0:00:05.2]} 53. Ke6 {[%clk 0:00:08.6]} 53... Re4+ {[%clk 0:00:05.1]} 54.
Kd6 {[%clk 0:00:09.1]} 54... Re1 {[%clk 0:00:04.1]} 55. h6 {[%clk 0:00:07]}
55... Rd1+ {[%clk 0:00:02.3]} 56. Ke6 {[%clk 0:00:06.7]} 56... Re1+ {[%clk
0:00:02.7]} 57. Kd7 {[%clk 0:00:07.1]} 57... Rd1+ {[%clk 0:00:02.9]} 58. Ke8
{[%clk 0:00:07.4]} 58... f1=Q {[%clk 0:00:01.5]} 59. Rxf1 {[%clk 0:00:08]} 59...
Rxf1 {[%clk 0:00:02.4]} 60. h7 {[%clk 0:00:08]} 60... Rh1 {[%clk 0:00:02.5]} 61.
Kd8 {[%clk 0:00:08.2]} 61... Rxh7 {[%clk 0:00:02.3]} 62. e8=Q {[%clk 0:00:08.2]}
1-0

[Event "*** Titled Tuesday Blitz"]
[Site "Chess.com"]
[Date "2021.03.30"]
[Round "3"]
[White "eljanov"]
[Black "Aradhya2000"]
[Result "1/2-1/2"]
[WhiteElo "2863"]
[BlackElo "2569"]
[TimeControl "180+1"]
[EndTime "10:29:38 PDT"]
[Termination "Game drawn - insufficient material"]

1. Nf3 {[%clk 0:03:00.9]} 1... d5 {[%clk 0:03:00.1]} 2. g3 {[%clk 0:03:00.7]}
2... Nf6 {[%clk 0:03:00.2]} 3. Bg2 {[%clk 0:03:00.9]} 3... c5 {[%clk 0:03:00.8]}
4. O-O {[%clk 0:03:00.2]} 4... g6 {[%clk 0:03:01.4]} 5. c4 {[%clk 0:02:57]} 5...
Bg7 {[%clk 0:03:00]} 6. Qa4+ {[%clk 0:02:54.7]} 6... Nc6 {[%clk 0:02:54.9]} 7.
Ne5 {[%clk 0:02:50.9]} 7... Bd7 {[%clk 0:02:53.6]} 8. Nxd7 {[%clk 0:02:48.1]}
8... Qxd7 {[%clk 0:02:54.5]} 9. cxd5 {[%clk 0:02:36.7]} 9... Nxd5 {[%clk
0:02:50.1]} 10. Nc3 {[%clk 0:02:37.2]} 10... Nb6 {[%clk 0:02:36.4]} 11. Qb5
{[%clk 0:02:26.3]} 11... Rc8 {[%clk 0:02:35.9]} 12. d3 {[%clk 0:02:22.8]} 12...
h5 {[%clk 0:02:22.4]} 13. a4 {[%clk 0:02:17]} 13... h4 {[%clk 0:02:17.9]} 14. a5
{[%clk 0:02:16.9]} 14... Na8 {[%clk 0:02:17.6]} 15. Be3 {[%clk 0:02:12.4]} 15...
hxg3 {[%clk 0:02:04.6]} 16. hxg3 {[%clk 0:02:11.5]} 16... Bd4 {[%clk 0:02:00.1]}
17. Bxd4 {[%clk 0:02:00.6]} 17... cxd4 {[%clk 0:01:59.9]} 18. Ne4 {[%clk
0:01:56.6]} 18... Rh5 {[%clk 0:01:59.1]} 19. Nc5 {[%clk 0:01:33.7]} 19... a6
{[%clk 0:01:56.9]} 20. Qc4 {[%clk 0:01:20.2]} 20... Qc7 {[%clk 0:01:13.5]} 21.
Rfc1 {[%clk 0:01:12.5]} 21... Kf8 {[%clk 0:00:43.7]} 22. Nb3 {[%clk 0:01:02]}
22... e5 {[%clk 0:00:35.7]} 23. Bf3 {[%clk 0:00:48.1]} 23... Rh6 {[%clk
0:00:26.6]} 24. Kg2 {[%clk 0:00:27]} 24... Kg7 {[%clk 0:00:26.1]} 25. Rh1 {[%clk
0:00:27.6]} 25... Rxh1 {[%clk 0:00:20.5]} 26. Rxh1 {[%clk 0:00:26.6]} 26... Qd6
{[%clk 0:00:19.5]} 27. Qd5 {[%clk 0:00:22.3]} 27... Qxd5 {[%clk 0:00:19.3]} 28.
Bxd5 {[%clk 0:00:22.1]} 28... Nc7 {[%clk 0:00:19.6]} 29. Bf3 {[%clk 0:00:17.4]}
29... Ne6 {[%clk 0:00:19.4]} 30. Rc1 {[%clk 0:00:16.5]} 30... Kf6 {[%clk
0:00:19.7]} 31. Nc5 {[%clk 0:00:13.7]} 31... Nxc5 {[%clk 0:00:15.4]} 32. Rxc5
{[%clk 0:00:14.6]} 32... Ke6 {[%clk 0:00:15.2]} 33. b4 {[%clk 0:00:12.8]} 33...
Kd6 {[%clk 0:00:13.9]} 34. g4 {[%clk 0:00:13.2]} 34... Rc7 {[%clk 0:00:13.9]}
35. g5 {[%clk 0:00:12.8]} 35... Nxb4 {[%clk 0:00:14.1]} 36. Rxc7 {[%clk
0:00:08.6]} 36... Kxc7 {[%clk 0:00:15]} 37. Kg3 {[%clk 0:00:07.2]} 37... Nc6
{[%clk 0:00:14.5]} 38. Bd5 {[%clk 0:00:07.3]} 38... Nd8 {[%clk 0:00:14.3]} 39.
f4 {[%clk 0:00:07.6]} 39... Kd6 {[%clk 0:00:14.6]} 40. Bc4 {[%clk 0:00:04.8]}
40... Ne6 {[%clk 0:00:14.8]} 41. fxe5+ {[%clk 0:00:03]} 41... Kxe5 {[%clk
0:00:15.7]} 42. Kg4 {[%clk 0:00:03.5]} 42... f5+ {[%clk 0:00:16.1]} 43. gxf6
{[%clk 0:00:03.6]} 43... Kxf6 {[%clk 0:00:16.7]} 44. Bd5 {[%clk 0:00:04.1]}
44... Nc5 {[%clk 0:00:16.3]} 45. Kf4 {[%clk 0:00:04.6]} 45... g5+ {[%clk
0:00:16.2]} 46. Kg4 {[%clk 0:00:05.1]} 46... Ke5 {[%clk 0:00:16.6]} 47. Bf3
{[%clk 0:00:04.2]} 47... Kf6 {[%clk 0:00:16.6]} 48. Bg2 {[%clk 0:00:03.7]} 48...
Nb3 {[%clk 0:00:16.4]} 49. Bxb7 {[%clk 0:00:03.5]} 49... Nxa5 {[%clk 0:00:16.7]}
50. Bxa6 {[%clk 0:00:03.8]} 50... Nb3 {[%clk 0:00:17.1]} 51. Bb7 {[%clk
0:00:03.5]} 51... Nc5 {[%clk 0:00:16.8]} 52. Bd5 {[%clk 0:00:03.5]} 52... Na4
{[%clk 0:00:16.3]} 53. Kf3 {[%clk 0:00:03.2]} 53... Nc3 {[%clk 0:00:16.3]} 54.
Bc6 {[%clk 0:00:03.7]} 54... g4+ {[%clk 0:00:16.4]} 55. Kxg4 {[%clk 0:00:03.5]}
55... Nxe2 {[%clk 0:00:16.3]} 56. Kf3 {[%clk 0:00:04]} 56... Nc3 {[%clk
0:00:16.5]} 57. Bd7 {[%clk 0:00:03.5]} 57... Ke5 {[%clk 0:00:16.6]} 58. Bh3
{[%clk 0:00:03.6]} 58... Nd5 {[%clk 0:00:16.9]} 59. Bd7 {[%clk 0:00:03.5]} 59...
Nf4 {[%clk 0:00:17]} 60. Bb5 {[%clk 0:00:03.6]} 60... Ne6 {[%clk 0:00:17.1]} 61.
Bc4 {[%clk 0:00:04]} 61... Nc5 {[%clk 0:00:17.5]} 62. Kg4 {[%clk 0:00:04.5]}
62... Ne4 {[%clk 0:00:16.9]} 63. dxe4 {[%clk 0:00:04.2]} 63... Kxe4 {[%clk
0:00:17.3]} 64. Kg3 {[%clk 0:00:04.6]} 64... Ke3 {[%clk 0:00:17.7]} 65. Bb5
{[%clk 0:00:04.2]} 65... d3 {[%clk 0:00:18.1]} 66. Bxd3 {[%clk 0:00:04.3]}
1/2-1/2